[Event "44th Chess Olympiad Open 2022"]
[Site "Chennai"]
[Date "2022.08.02"]
[Round "5.66"]
[White "Iclicki, Willy"]
[Black "Brookfield, Toby"]
[Result "1-0"]
[ECO "A80"]
[WhiteElo "1975"]
[BlackElo "1815"]
[Annotator "TA"]
[PlyCount "141"]
[EventDate "2022.07.29"]
[EventType "team-tourn"]
[EventCountry "IND"]
[SourceTitle "playchess.com"]
[Source "ChessBase"]
[SourceQuality "1"]
[WhiteTeam "Liechtenstein"]
[BlackTeam "Channel Islands"]
[WhiteTeamCountry "LIE"]
[BlackTeamCountry "GCI"]
[TimeControl "40/5400+30:1800+30"]

{[%evp 9,141,18,22,22,81,43,35,12,31,0,0,-6,51,46,65,28,18,12,44,40,43,47,64,11,473,481,469,462,494,506,499,401,377,363,339,353,333,350,416,419,403,336,437,389,418,371,484,396,481,491,518,524,512,508,467,430,932,924,791,486,472,447,4894,629,29975,29969,29993,29985,29979,920,920,920,29969,5884,5804,5406,29997,920,907,916,1460,905,917,902,894,840,594,535,779,652,916,910,870,851,4922,4590,1774,1712,1712,1696,1565,807,1455,1443,1271,800,835,0,806,0,460,370,802,779,796,797,751,672,641,425,5595,5597,5591,5591,4133,5065,1466,1163,5624,4710,9458,7857,1700,1447]} 1. d4 {[%emt 0:00:03]} f5 {[%emt 0:00:06]} 2. Nc3 {[%emt 0:00:13]} Nf6 {[%emt 0:00:29]} 3. Bg5 {[%emt 0:01:11]} d5 {[%emt 0:00:29]} 4. f3 {[%emt 0:01:29]} Be6 {[%emt 0:10:00]} 5. e3 {[%emt 0:12:46] [#]} a6 $146 {[%emt 0:01:05]} ({Predecessor:} 5... Nbd7 6. Qd2 c6 7. Nge2 h6 8. Bh4 g5 9. Bf2 Bg7 10. h4 b5 11. Ng3 Nb6 12. b3 {0-1 (35) Hamidi,A (2276)-Nepomniachtchi,I (2773) Chess.com INT 2022}) 6. Bd3 {[%emt 0:00:22] A80: Dutch Defence: Unusual White second moves.} g6 {[%emt 0:02:27]} (6... h6 $11 7. Bh4 Nc6) 7. Nge2 {[%emt 0:01:38]} Bg7 {[%emt 0:04:12]} 8. Qd2 {[%emt 0:05:14] White is slightly better.} Nc6 {[%emt 0:00:40]} 9. a3 {[%emt 0:00:34]} Qd7 {[%emt 0:03:26]} 10. O-O-O {[%emt 0:03:28]} O-O-O {[%emt 0:00:09]} ({Black should try} 10... Bf7 $1 $11) 11. Na4 $14 {[%emt 0:05:19]} Bf7 {[%emt 0:07:13][%cal Oc6d4]} 12. Nc5 {[%emt 0:04:15]} (12. Qc3 $5 {[%cal Ra4c5]} Qe8 13. Nc5 $14) 12... Qd6 {[%emt 0:01:07]} 13. Qc3 {[%emt 0:12:21]} Nb8 {[%emt 0:10:26]} 14. Bf4 {[%emt 0:08:26]} Qc6 {[%emt 0:01:40]} 15. Be5 {[%emt 0:00:44]} Bh6 {[%emt 0:05:00]} 16. Nf4 $40 {[%emt 0:03:45][%mdl 128] White mounts an attack. White is more active.} ({Better is} 16. b4 $14) 16... g5 $2 {[%emt 0:04:59][%mdl 8192] White leaves nothing to chance now.} (16... Rhe8 $11) 17. Bxf5+ $18 {[%emt 0:03:32]} Nbd7 {[%emt 0:06:15]} 18. Nfe6 {[%emt 0:12:02]} Bxe6 {[%emt 0:03:34]} 19. Bxe6 {[%emt 0:05:52]} Rhe8 {[%emt 0:06:54]} 20. Bxf6 {[%emt 0:06:04]} exf6 {[%emt 0:00:20]} 21. Bxd7+ {[%emt 0:00:34]} Rxd7 {[%emt 0:00:44]} 22. Nxd7 {[%emt 0:00:13]} Qxd7 {[%emt 0:02:01]} 23. g4 {[%emt 0:03:12]} Re6 {[%emt 0:00:13]} 24. Qd3 {[%emt 0:00:50]} Bf8 {[%emt 0:01:30]} 25. Qf5 {[%emt 0:02:04]} Kb8 {[%emt 0:01:06]} 26. Rd3 {[%emt 0:00:38]} Qe8 {[%emt 0:01:37]} 27. Kb1 {[%emt 0:02:45]} h6 {[%emt 0:01:02]} 28. Rhd1 {[%emt 0:00:52]} Bd6 {[%emt 0:02:13]} 29. Qxd5 {[%emt 0:00:53]} Rxe3 {[%emt 0:00:27]} 30. Rxe3 {[%emt 0:00:35]} Qxe3 {[%emt 0:00:09][%mdl 4096] Endgame KQR-KQB} 31. Qe4 {[%emt 0:00:27]} Qf2 {[%emt 0:00:33]} 32. Rd3 {[%emt 0:01:33]} Qxh2 {[%emt 0:00:14]} (32... Bxh2 $142 33. Rb3 Qf1+ 34. Ka2 b6) 33. Rb3 {[%emt 0:00:34][%csl Gb3][%cal Re4b7] [#]} b6 {[%emt 0:00:29]} 34. a4 {[%emt 0:00:31] And now a5 would win.} a5 {[%emt 0:00:23]} 35. c4 {[%emt 0:00:46][%cal Bc2c4,Bc4c5][%mdl 32]} Ka7 {[%emt 0:01:55]} (35... Bb4 $142 36. Re3 Qd2) 36. Ka2 {[%emt 0:00:51]} (36. c5 $142 Qg1+ 37. Ka2 Bxc5 38. dxc5 Qxc5 39. Rc3) 36... Qd2 {[%emt 0:03:22]} 37. c5 {[%emt 0:00:37]} Bf8 {[%emt 0:02:00]} 38. cxb6+ {[%emt 0:00:29]} cxb6 {[%emt 0:00:11]} 39. Qd5 {[%emt 0:00:39]} (39. Rc3 $142 Qxc3 40. bxc3 Bd6 41. Qh7+ Kb8 42. Qg8+ Kb7 43. Qd5+ Kc7 44. Qf7+ Kb8 45. Qxf6) 39... Bb4 {[%emt 0:01:17]} 40. Qd7+ {[%emt 0:00:46]} Ka6 {[%emt 0:03:35]} 41. Qc8+ {[%emt 0:30:47]} (41. Qc6 $142 Ka7 42. Qc7+ Ka8 43. Qxb6 Qc2 44. Qa6+ Kb8 45. d5 Qc7 46. d6) 41... Ka7 {[%emt 0:30:07]} 42. Qc7+ {[%emt 0:00:00]} Ka6 {[%emt 0:00:00]} 43. Qc4+ {[%emt 0:00:00]} (43. Qb8 $142 Qxb2+ 44. Rxb2 Be7 45. Rxb6#) 43... Ka7 {[%emt 0:00:00]} 44. d5 {[%emt 0:00:00]} Qh2 {[%emt 0:00:00]} 45. Qc6 {[%emt 0:00:00][%cal Ob3b4] [#] Intending Rxb4! and mate.} Qf4 {[%emt 0:00:00]} 46. d6 {[%emt 0:00:00]} Qxd6 {[%emt 0:00:00]} 47. Qxd6 {[%emt 0:00:00]} Bxd6 {[%emt 0:00:00] KR-KB} 48. Rd3 {[%emt 0:00:00]} Be5 {[%emt 0:00:00]} 49. Rd7+ {[%emt 0:00:00]} Ka6 {[%emt 0:00:00]} 50. b3 {[%emt 0:00:00][%cal Bb2b3,Bb3a4][%mdl 32]} b5 {[%emt 0:00:00]} 51. Kb1 {[%emt 0:00:00]} bxa4 {[%emt 0:00:00]} 52. bxa4 {[%emt 0:00:00]} Kb6 {[%emt 0:00:00]} 53. Kc2 {[%emt 0:00:00]} Kc5 {[%emt 0:00:00] Prevents Rd5+.} 54. Kb3 {[%emt 0:00:00]} Bf4 {[%emt 0:01:31]} 55. Rd1 {[%emt 0:03:19]} (55. Rh7 Kd4 56. Re7 (56. Rxh6 Ke3 $16) 56... Kd3 $18) 55... Be5 {[%emt 0:01:43]} 56. Rd8 {[%emt 0:01:10]} ({Not} 56. Rh1 Kd4 $18) 56... Bf4 {[%emt 0:02:11]} 57. Re8 {[%emt 0:03:08]} Be5 {[%emt 0:00:33]} 58. Rd8 {[%emt 0:00:35]} Bf4 {[%emt 0:00:41]} 59. Rd1 {[%emt 0:00:30]} Be5 {[%emt 0:00:25]} 60. Re1 {[%emt 0:00:36] Hoping for Re2.} ({Weaker is} 60. Rh1 Kd4 $18) 60... Kd4 $2 {[%emt 0:02:20]} (60... Kd5 61. Rd1+ (61. Rh1 Kd4 $18) 61... Bd4) 61. Kc2 {[%emt 0:00:45] White is clearly winning.} Kc4 {[%emt 0:01:20]} 62. Re4+ {[%emt 0:00:25]} Kc5 {[%emt 0:01:34]} 63. Kd3 {[%emt 0:00:10]} Kd5 {[%emt 0:01:54]} 64. Re1 {[%emt 0:00:34]} Kc5 {[%emt 0:01:00]} (64... Bd6 $142 65. Rh1 Bf8) 65. Rb1 {[%emt 0:00:14]} Bc7 {[%emt 0:03:58]} 66. Rb5+ {[%emt 0:00:28]} Kd6 {[%emt 0:00:35]} 67. Ke4 {[%emt 0:00:10] aiming for Kf5.} Ke6 {[%emt 0:00:17]} 68. Rc5 {[%emt 0:01:03]} Bd8 {[%emt 0:01:10]} 69. Rc6+ {[%emt 0:00:17]} Kf7 {[%emt 0:01:45]} 70. Kf5 {[%emt 0:00:09]} Be7 {[%emt 0:00:48]} 71. Rc7 {[%emt 0:00:19] Weighted Error Value: White=0.72/Black=1.01} 1-0

[Event "44th Chess Olympiad Open 2022"]
[Site "Chennai"]
[Date "2022.08.02"]
[Round "5.68"]
[White "Ndahangwapo, Heskiel"]
[Black "Lee, Ethan"]
[Result "1-0"]
[ECO "E01"]
[WhiteElo "1904"]
[BlackElo "1629"]
[Annotator "TA"]
[PlyCount "100"]
[EventDate "2022.07.29"]
[EventType "team-tourn"]
[EventCountry "IND"]
[SourceTitle "playchess.com"]
[Source "ChessBase"]
[SourceQuality "1"]
[WhiteTeam "Namibia"]
[BlackTeam "SGP"]
[WhiteTeamCountry "NAM"]
[TimeControl "40/5400+30:1800+30"]

{[%evp 9,100,-44,5,-39,-13,-12,5,-11,32,-71,-2,-3,29,18,24,-26,-15,-16,126,-162,-157,-164,-162,-154,-143,-207,-62,-66,62,60,89,97,745,743,776,763,759,748,687,400,416,416,415,399,427,395,401,395,393,395,387,384,369,368,436,435,409,388,511,511,741,745,734,721,615,515,748,733,29968,29970,29970,29971,29968,29971,29975,29976,29977,29978,29980,29976,29979,29978,29978,29978,29979,29979,29978,29979,29978,29980,29986,29987,29987]} 1. d4 {[%emt 0:00:03]} d5 {[%emt 0:00:11]} 2. c4 {[%emt 0:00:06]} Nf6 {[%emt 0:00:09]} 3. Nf3 {[%emt 0:00:05]} e6 {[%emt 0:00:15]} 4. g3 {[%emt 0:00:04]} dxc4 {[%emt 0:00:11]} 5. Nbd2 {[%emt 0:00:10]} c5 {[%emt 0:04:40]} (5... b5 $15 {feels stronger.} 6. a4 c6) 6. dxc5 {[%emt 0:02:02] E01: Catalan: Early deviations.} Nc6 {[%emt 0:01:32]} (6... Bxc5 {feels hotter.} 7. Qa4+ Nc6 8. Bg2 O-O) 7. Bg2 {[%emt 0:00:10]} Bxc5 {[%emt 0:04:01]} 8. O-O {[%emt 0:00:07] The position is equal.} O-O {[%emt 0:03:57]} (8... b5 {keeps more tension.} 9. Ne5 Nxe5 10. Bxa8 Neg4) 9. Qc2 {[%emt 0:00:09] [#]} (9. Nxc4 $14 {stays ahead.} b6 10. Qa4) 9... Qc7 $146 {[%emt 0:04:29]} (9... b5 $17) ({Predecessor:} 9... b5 10. a4 Ba6 11. axb5 Bxb5 12. Nxc4 Rc8 13. b3 Nb4 14. Qb2 Qe7 15. Bg5 h6 16. Bxf6 Qxf6 17. Qxf6 gxf6 {0-1 (23) Dellepiani,F (2118)-Barbosa,O (2435) ICC INT 2009}) 10. Nxc4 {[%emt 0:01:32]} Rd8 {[%emt 0:14:44]} 11. Bf4 {[%emt 0:00:13]} e5 {[%emt 0:14:06]} 12. Bxe5 {[%emt 0:05:45]} ({White should try} 12. Ncxe5 Nxe5 13. Kh1) 12... Nxe5 $11 {[%emt 0:02:52]} 13. Nfxe5 {[%emt 0:00:06]} b5 {[%emt 0:03:00]} 14. Na3 $2 {[%emt 0:05:56][%mdl 8192] [#] White is more active.} Qxe5 $1 $19 {[%emt 0:00:49]} 15. Bxa8 {[%emt 0:00:26] aiming for Rac1.} (15. Rac1 Bxa3) 15... Bf5 {[%emt 0:01:42]} 16. e4 {[%emt 0:00:05] [#]} Bh3 {[%emt 0:07:03] This bishop pair is nice.} 17. Bc6 {[%emt 0:00:32]} (17. Bb7 $17 Rb8 18. Rac1 (18. Bc6 Rc8 $17) 18... Bxa3 19. bxa3) 17... a6 {[%emt 0:08:19]} ({Black should play} 17... Rc8 $19 18. Rfd1 (18. Bb7 Rc7 $19) 18... Bb6) 18. Rfd1 $15 {[%emt 0:06:40]} Rxd1+ {[%emt 0:03:03]} (18... Rc8 $1 $15 19. Rac1 (19. Bb7 Rc7 $15) 19... Bb6) 19. Rxd1 $14 {[%emt 0:00:11][%cal Ba1d1,Bd1d5,Bd5c5][%mdl 32]} h5 {[%emt 0:01:21] Black is on the road to losing.} 20. Nb1 {[%emt 0:02:20] And now Rd8+ would win.} Ng4 $2 {[%emt 0:05:31][%mdl 8192]} (20... h4 $16 21. Qc3 Ng4 22. Qxe5 Bxf2+ 23. Kh1 Nxe5) 21. Rd5 $18 {[%emt 0:03:04]} Bxf2+ {[%emt 0:13:55] [#]} 22. Qxf2 $1 {[%emt 0:00:14][%mdl 512]} Qc7 {[%emt 0:00:52]} 23. Qc5 {[%emt 0:02:06]} Nf6 {[%emt 0:02:46]} 24. Bd7 {[%emt 0:06:57]} Qxc5+ {[%emt 0:01:35]} 25. Rxc5 {[%emt 0:00:05]} Bxd7 {[%emt 0:00:09][%mdl 4096] Endgame KRN-KBN} 26. Nc3 {[%emt 0:00:23]} ({Resist} 26. Nd2 Kf8 27. Rc7 Ke8 $18) 26... b4 {[%emt 0:00:26]} 27. Nd5 {[%emt 0:00:44]} Nxe4 {[%emt 0:00:06]} 28. Rc4 {[%emt 0:00:15]} Ng5 {[%emt 0:01:18]} 29. Rxb4 {[%emt 0:00:51]} Nf3+ {[%emt 0:00:43]} 30. Kg2 {[%emt 0:00:26]} Ne1+ {[%emt 0:00:17]} 31. Kf1 {[%emt 0:00:17]} Nd3 {[%emt 0:00:38]} 32. Rb8+ {[%emt 0:00:13]} Kh7 {[%emt 0:00:04]} 33. Nf4 {[%emt 0:00:06]} Nxf4 {[%emt 0:00:41]} 34. gxf4 {[%emt 0:00:05] KR-KB} Be6 {[%emt 0:00:25]} 35. b3 {[%emt 0:00:49]} Kg6 {[%emt 0:00:21]} 36. Kf2 {[%emt 0:01:05]} Kf5 {[%emt 0:00:19]} 37. Kg3 {[%emt 0:00:26]} f6 {[%emt 0:01:00]} 38. h4 {[%emt 0:00:17]} g5 {[%emt 0:00:39]} 39. fxg5 {[%emt 0:00:13] White mates.} fxg5 {[%emt 0:00:07]} 40. hxg5 {[%emt 0:00:18]} Kxg5 {[%emt 0:00:03]} 41. Ra8 {[%emt 0:30:12]} h4+ {[%emt 0:30:13]} 42. Kh2 {[%emt 0:00:09]} Kf4 {[%emt 0:00:37]} 43. Rxa6 {[%emt 0:00:17]} Bc8 {[%emt 0:01:34]} 44. Rc6 {[%emt 0:00:25]} Bb7 {[%emt 0:00:11]} 45. Rc4+ {[%emt 0:00:06]} Ke5 {[%emt 0:00:32]} 46. Kh3 {[%emt 0:00:26]} Kd5 {[%emt 0:00:25]} 47. Kxh4 {[%emt 0:00:06]} Ba6 {[%emt 0:00:18]} 48. Rc1 {[%emt 0:00:07]} Bd3 {[%emt 0:00:17]} 49. Rd1 {[%emt 0:00:28]} Kd4 {[%emt 0:00:27]} 50. a4 {[%emt 0:00:14]} Ke4 {[%emt 0:01:16] Weighted Error Value: White=0.38/Black=0.52} 1-0

[Event "44th Chess Olympiad Open 2022"]
[Site "Chennai"]
[Date "2022.08.02"]
[Round "5.68"]
[White "Uapingene, Uatiavi Jossy"]
[Black "Drayton, Anthony"]
[Result "1/2-1/2"]
[ECO "D00"]
[WhiteElo "1798"]
[BlackElo "1928"]
[Annotator "TA"]
[PlyCount "211"]
[EventDate "2022.07.29"]
[EventType "team-tourn"]
[EventCountry "IND"]
[SourceTitle "playchess.com"]
[Source "ChessBase"]
[SourceQuality "1"]
[WhiteTeam "Namibia"]
[BlackTeam "Guyana"]
[WhiteTeamCountry "NAM"]
[BlackTeamCountry "GUY"]
[TimeControl "40/5400+30:1800+30"]

{[%evp 9,211,-21,-10,-17,-19,-18,-8,-25,-22,-22,-26,-19,-23,-18,-11,-31,-23,-58,-24,-39,-10,-23,-15,-14,29,27,26,-108,-35,-127,-90,-83,-33,-24,-21,-116,-114,-114,-112,-110,-105,-142,-140,-156,-148,-148,-153,-156,-147,-162,-162,-159,-110,-120,-74,-125,-144,-143,-95,-96,-101,-125,-125,-254,-247,-232,-100,-103,-70,-96,-91,-96,-81,-84,-84,-152,-152,-140,-123,-158,-158,-158,-158,-151,-134,-134,-134,-137,-134,-133,-133,-126,-101,-216,-204,-240,-169,-424,-414,-375,-368,-324,-272,-265,-273,-247,-228,-236,-204,-80,-45,-703,-286,-633,-574,-616,-572,-1033,-894,-1177,-574,-566,-572,-640,-75,-75,-8,-8,-8,-8,-8,-8,0,0,0,0,0,-613,-553,-29942,-29939,-12799,-12799,-29980,-29981,-29977,-12809,-6502,-6663,-5419,-5413,-29977,-29978,-29978,-29976,-29968,-8,-8,-8,-8,-8,-29976,-29977,-29977,-29978,-29977,0,0,0,0,0,0,0,-8,-8,-8,-8,-8,-8,-8,-8,-137,-137,-137,-8,-8,0,0,0,0,0,0,0,0,0,0,0,0,0,0,0,0,0,0]} 1. d4 {[%emt 0:00:15]} Nf6 {[%emt 0:00:09]} 2. Bg5 {[%emt 0:00:04]} d5 {[%emt 0:00:05]} 3. Bxf6 {[%emt 0:00:07]} exf6 {[%emt 0:00:07]} 4. e3 {[%emt 0:00:24]} Bd6 {[%emt 0:00:09]} 5. g3 {[%emt 0:00:21]} Nd7 {[%emt 0:00:25]} 6. Bg2 {[%emt 0:02:46] D00: 1 d4 d5: Unusual lines.} c6 {[%emt 0:00:20]} 7. Ne2 {[%emt 0:02:05]} Nb6 {[%emt 0:00:30]} 8. b3 {[%emt 0:06:16]} Bf5 {[%emt 0:00:15]} 9. Nd2 {[%emt 0:00:11]} Ba3 {[%emt 0:00:21]} 10. O-O {[%emt 0:02:00]} O-O {[%emt 0:03:19] [#]} 11. Nf3 $146 {[%emt 0:08:00]} ({Predecessor:} 11. Nf4 Qd7 12. Nf3 g5 13. Nd3 Rfe8 14. Qe2 Bg6 15. Rfe1 Rad8 16. Qd2 Kg7 17. Qc3 {0-1 (40) Ackley,P (2108)-Sanchez,J (1923) ICCF email 2018}) 11... h6 {[%emt 0:02:58]} 12. Qd2 {[%emt 0:00:22]} Re8 {[%emt 0:00:41]} 13. Nf4 {[%emt 0:09:12][%cal Oc2c4]} Qe7 {[%emt 0:04:06]} 14. Nd3 {[%emt 0:05:15]} Rad8 {[%emt 0:01:42]} 15. Rab1 {[%emt 0:00:27]} Bg6 {[%emt 0:01:26]} 16. Qc3 {[%emt 0:06:13]} a5 {[%emt 0:07:35]} 17. Nh4 {[%emt 0:02:42]} Bh7 {[%emt 0:02:08]} 18. b4 {[%emt 0:13:26]} (18. Qxa5 $11 Ra8 19. Qd2 (19. Qxb6 Ra6 $17)) 18... Bxd3 {[%emt 0:04:10]} (18... axb4 $17 19. Nxb4 Nc4) 19. cxd3 {[%emt 0:00:07]} (19. Qxd3 $15 axb4 20. c3) 19... Bxb4 {[%emt 0:00:42]} 20. Qb3 {[%emt 0:00:06] a3 is the strong threat.} Na8 {[%emt 0:04:51]} (20... Nc8 $17) 21. Nf5 $15 {[%emt 0:02:44]} Qf8 {[%emt 0:00:42]} 22. a3 {[%emt 0:02:13]} (22. Ra1 $1 $11 {keeps the balance.}) 22... Bxa3 $17 {[%emt 0:00:29]} 23. Qxb7 {[%emt 0:00:07]} g6 {[%emt 0:01:44]} 24. Nh4 {[%emt 0:00:44]} Qd6 {[%emt 0:01:48]} 25. Qb3 {[%emt 0:00:43]} Rb8 {[%emt 0:00:37]} 26. Qa4 {[%emt 0:00:22]} Rxb1 {[%emt 0:00:24]} 27. Rxb1 {[%emt 0:00:12]} Bb4 {[%emt 0:00:05]} 28. Rc1 {[%emt 0:00:22]} Rc8 {[%emt 0:00:32]} 29. Qd1 {[%emt 0:00:23]} Nb6 {[%emt 0:01:32]} 30. Nf3 {[%emt 0:07:38]} c5 {[%emt 0:01:41]} ({Black should try} 30... a4 31. h4 h5) 31. dxc5 {[%emt 0:07:23]} Rxc5 {[%emt 0:00:12]} (31... Bxc5 $142 32. Bh3 Rc7) 32. Nd4 {[%emt 0:00:22]} (32. Rb1 $142) 32... Rxc1 {[%emt 0:00:27]} 33. Qxc1 {[%emt 0:02:54]} Qc5 {[%emt 0:00:25]} (33... a4 $142 34. Qb1 Qc5) 34. Qxc5 {[%emt 0:07:03]} Bxc5 {[%emt 0:04:25][%mdl 4096] Endgame KBN-KBN} 35. Nb3 {[%emt 0:00:04][%csl LRa5,LRc5]} Bb4 {[%emt 0:00:10]} 36. Na1 {[%emt 0:00:09]} (36. Kf1 $17 {was necessary.}) 36... a4 $1 $19 {[%emt 0:00:51]} 37. Nc2 {[%emt 0:00:09]} Bc3 {[%emt 0:00:15]} (37... Be7 $19 {and Black stays clearly on top. Hoping for ...a3.} 38. d4 a3) 38. Kf1 $17 {[%emt 0:01:20]} Bb2 {[%emt 0:00:17][%cal Od5d4]} 39. Ke2 {[%emt 0:00:12]} a3 {[%emt 0:00:10]} 40. Nb4 {[%emt 0:00:11]} Na4 {[%emt 0:00:12]} 41. Na2 {[%emt 0:31:06]} d4 {[%emt 0:30:17]} 42. exd4 {[%emt 0:06:08]} (42. Bd5 $142) 42... Bxd4 {[%emt 0:00:07]} 43. Bd5 {[%emt 0:00:25]} f5 {[%emt 0:00:51]} 44. f4 {[%emt 0:06:13]} Kf8 {[%emt 0:00:11]} 45. Bb3 {[%emt 0:00:09]} Nc5 {[%emt 0:00:24]} 46. Bc4 {[%emt 0:00:23]} Ke7 {[%emt 0:00:10]} 47. Nb4 {[%emt 0:00:06]} Bb2 {[%emt 0:02:10]} 48. Nd5+ {[%emt 0:00:00]} Kd6 {[%emt 0:00:00]} 49. Ne3 {[%emt 0:00:00]} Ne6 {[%emt 0:00:00]} 50. Ba2 {[%emt 0:00:00]} Kc5 {[%emt 0:00:00]} 51. Nc4 {[%emt 0:00:00]} (51. Kd2 $17 {might work better.}) 51... Nd4+ {[%emt 0:00:00]} 52. Kd1 {[%emt 0:00:00]} Kb4 {[%emt 0:00:00]} 53. Ne5 $2 {[%emt 0:00:00]} (53. Ne3) 53... Nb5 $19 {[%emt 0:00:00]} 54. Bxf7 {[%emt 0:00:00]} Bxe5 {[%emt 0:00:00]} 55. fxe5 {[%emt 0:00:00] KB-KN} Kc3 {[%emt 0:00:00]} ({And not} 55... Nc3+ 56. Kc2 $11) 56. Bc4 {[%emt 0:00:00]} Nd4 {[%emt 0:00:00]} 57. Kc1 {[%emt 0:00:00]} Nc6 {[%emt 0:00:00]} 58. e6 {[%emt 0:00:00]} g5 {[%emt 0:00:00]} 59. Kb1 {[%emt 0:00:00]} Ne7 {[%emt 0:00:00]} 60. Kc1 $2 {[%emt 0:00:43][%mdl 8192]} (60. Ba6 $15) 60... h5 {[%emt 0:00:00] Strongly threatening ...f4.} (60... f4 $2 61. gxf4 gxf4 62. Kd1 $19) 61. Kd1 {[%emt 0:00:11]} Kd4 {[%emt 0:00:00]} ({Worse is} 61... Kb2 62. Kd2 $17) 62. Ke2 {[%emt 0:00:07]} Nc6 {[%emt 0:00:00]} 63. Ba2 {[%emt 0:03:36]} Ke5 {[%emt 0:00:00]} 64. Ke3 {[%emt 0:00:06]} f4+ {[%emt 0:00:00]} (64... Kd6 $142 {aiming for ...Nb4.} 65. Bb3 Nb4) 65. gxf4+ {[%emt 0:00:07]} gxf4+ {[%emt 0:00:00]} 66. Kf2 {[%emt 0:01:10]} Kf5 $2 {[%emt 0:00:00]} (66... Kd6 $19 {is more deadly.} 67. Kf3 Ke5) 67. d4 $17 {[%emt 0:00:37] Threatens to win with d5.} Ne7 {[%emt 0:00:00]} (67... Nxd4 68. e7 Ke4 69. e8=Q+ Kd3 70. Qxh5 Kc2 71. Qc5+ Kb2 72. Qxd4+ Kxa2 73. Qc3) (67... Kf6 $1 $17 68. Kf3 Nb4) 68. Kf3 $11 {[%emt 0:02:01]} Nc8 {[%emt 0:00:00]} 69. h4 {[%emt 0:02:00]} Ne7 {[%emt 0:00:00]} 70. d5 {[%emt 0:00:09]} Nc8 {[%emt 0:00:00]} 71. Bb1+ {[%emt 0:01:49]} Ke5 {[%emt 0:00:10]} 72. Ba2 {[%emt 0:00:04]} Nd6 {[%emt 0:04:45]} 73. Bb3 $2 {[%emt 0:00:55][%mdl 8192]} (73. e7 $11) 73... Nf5 $19 {[%emt 0:00:41]} 74. Kf2 {[%emt 0:00:08]} Kd6 {[%emt 0:00:21]} 75. Ba2 {[%emt 0:01:20]} Nxh4 {[%emt 0:00:11]} 76. Bc4 {[%emt 0:01:01]} Nf5 {[%emt 0:00:21]} 77. Kf3 {[%emt 0:01:00]} Ke5 {[%emt 0:00:09]} (77... h4 $142 78. Kxf4 h3 $1 79. e7 Kxe7 $1 80. Kxf5 h2 81. Kf4 Kd6 82. Ke4 h1=Q+ 83. Ke3 Qh3+ 84. Ke4 Qc3 85. Ba2 Qc2+ 86. Kf4 Qxa2 87. Kg3 Qc4 88. Kh3 a2 89. Kh2 a1=Q 90. Kg3 Qg1+ 91. Kh3 Qcg4#) 78. Ba2 {[%emt 0:00:10]} Nd6 {[%emt 0:02:33]} 79. e7 {[%emt 0:01:22]} h4 {[%emt 0:00:12][%cal Bh5h4,Bh4h3][%mdl 32]} 80. Bb3 {[%emt 0:00:54]} h3 {[%emt 0:00:07]} 81. Ba2 {[%emt 0:00:20]} h2 {[%emt 0:01:26]} 82. Kg2 {[%emt 0:00:17]} Ke4 $2 {[%emt 0:00:55]} (82... Kf6 83. Kxh2 Kxe7 84. Kg2 Kf6 85. Kf1 Ke5 86. Ke2 Ne4 87. d6 Kxd6 88. Kf3 Nc3 89. Bc4 Ke5 90. Bg8 Nd5 91. Bxd5 Kxd5 92. Kg4 a2 93. Kxf4 a1=Q 94. Kg3 Qe1+ 95. Kg4 Ke5 96. Kf3 Kf5 97. Kg2 Kf4 98. Kh2 Kf3 99. Kh3 Qh1#) 83. Kxh2 $11 {[%emt 0:00:18]} Ke3 {[%emt 0:00:32]} 84. Kg1 $1 {[%emt 0:00:14]} f3 {[%emt 0:00:19]} (84... Ke2 $5 85. Bc4+ (85. Kg2 $2 f3+ 86. Kg3 f2 $19) 85... Kf3 $11) 85. Kf1 $2 {[%emt 0:00:07][%mdl 8192]} (85. Bc4 $11) 85... f2 $1 {[%emt 0:00:12]} 86. Bb3 {[%emt 0:01:25] [#]} Kf3 $1 {[%emt 0:00:11]} 87. Bd1+ {[%emt 0:00:06] [#]} Kg3 $2 {[%emt 0:00:18]} (87... Kf4 $1 {mates} 88. Bb3 Ke3 89. Bc4 Kf3 90. Be2+ Kg3 91. Bc4 Nxc4 92. e8=Q Nd2+ 93. Ke2 f1=Q+ 94. Kxd2 a2 95. Qe3+ Kg2 96. Qg5+ Kh1 97. Qh4+ Kg1 98. Qg5+ Qg2+ 99. Qxg2+ Kxg2 100. Kd3 a1=Q 101. Kc4 Qe5 102. Kc5 Qc7+ 103. Kd4 Kf3 104. Kd3 Qc5 105. Kd2 Qxd5+ 106. Kc3 Qc5+ 107. Kb3 Ke3 108. Ka4 Kd3 109. Kb3 Qb5+ 110. Ka2 Kc3 111. Ka3 Qb3#) 88. Bb3 {[%emt 0:00:06]} Ne8 {[%emt 0:02:49]} 89. Bc4 {[%emt 0:00:33]} Nf6 {[%emt 0:02:46]} 90. d6 {[%emt 0:01:52]} Ng4 {[%emt 0:00:07]} 91. e8=Q {[%emt 0:00:30] White threatens Qg8 and mate.} Nh2+ {[%emt 0:00:10]} 92. Ke2 {[%emt 0:00:04]} f1=Q+ {[%emt 0:02:46]} 93. Kd2 $1 $132 {[%emt 0:00:02][%mdl 2048] White has counterplay. The board is on fire.} Qxc4 {[%emt 0:00:21]} 94. Qe5+ {[%emt 0:01:06]} Kg2 {[%emt 0:03:55]} 95. Qe2+ {[%emt 0:00:49]} (95. Qg7+ $1 $11 {was the only way to keep the balance.} Ng4 96. d7 Qd5+ 97. Kc3) 95... Qxe2+ $17 {[%emt 0:00:08]} 96. Kxe2 {[%emt 0:00:03] KN-KP} Nf3 {[%emt 0:00:12]} (96... a2 $17 97. d7 a1=Q) 97. d7 $11 {[%emt 0:00:44] The position is equal.} a2 {[%emt 0:02:14]} 98. d8=Q {[%emt 0:00:09] Qg8+ would kill now.} Ng1+ {[%emt 0:00:44]} 99. Ke3 {[%emt 0:00:08] White wants to mate with Qg8+.} a1=Q {[%emt 0:00:15]} 100. Qg5+ {[%emt 0:00:56]} Kh2 {[%emt 0:01:31]} 101. Qf4+ {[%emt 0:00:27]} Kh3 {[%emt 0:00:18]} 102. Qh6+ {[%emt 0:00:41]} Kg4 {[%emt 0:00:36]} 103. Qg6+ {[%emt 0:00:06]} Kh3 {[%emt 0:01:01]} 104. Qh6+ {[%emt 0:00:27]} Kg2 {[%emt 0:00:32]} 105. Qg5+ {[%emt 0:00:15]} Kh2 {[%emt 0:01:27] ( -> ...Qc1+)} 106. Qf4+ {[%emt 0:00:20] Weighted Error Value: White=0.37/Black=0.14 (very precise)} 1/2-1/2